bitfinex/quotes_SOLUSD_20251006
["timestamp","ask_amount","ask_price","bid_price","bid_amount"]
[1759747759758,0.67,232.91,232.89,29.88]
[1759747760447,0.67,232.9,232.89,29.88]
[1759747760759,4.96368827,232.9,232.89,29.88]
[1759747762955,4.96368827,232.9,232.86,3.61486683]
[1759747763261,4.29405702,232.88,232.87,29.88]
[1759747763446,4.96405702,232.88,232.87,29.88]
[1759747765265,4.96405702,232.88,232.86,33.49486683]
[1759747765462,0.67,232.87,232.86,33.49486683]
[1759747765642,0.67,232.87,232.85,3.61486683]
[1759747765838,0.67,232.86,232.85,3.61486683]
[1759747766147,2.00863817,232.86,232.82,3.61486683]
[1759747766358,0.67,232.85,232.82,3.61486683]
[1759747766759,0.67,232.84,232.82,3.61486683]
[1759747766947,1.33863817,232.86,232.82,3.61486683]
[1759747767144,4.96474651,232.85,232.82,3.61486683]
[1759747767389,0.67,232.84,232.82,3.61486683]
[1759747767666,4.29474651,232.85,232.82,3.61486683]
[1759747768174,4.96474651,232.85,232.82,3.61486683]
[1759747768977,0.67,232.84,232.82,3.61486683]
[1759747770049,0.67,232.83,232.82,3.61486683]
[1759747770663,0.67,232.85,232.82,3.61486683]
[1759747770962,0.67,232.86,232.82,3.61486683]
[1759747771161,0.67,232.85,232.82,3.61486683]
[1759747771370,0.67,232.85,232.81,33.49486683]
[1759747771543,0.67,232.84,232.81,33.49486683]
[1759747772155,4.96490717,232.84,232.81,33.49486683]
[1759747772966,4.29455831,232.86,232.81,34.18486683]
[1759747773368,0.67,232.85,232.81,34.18486683]
[1759747773866,0.67,232.85,232.81,33.49486683]
[1759747774373,4.96472505,232.85,232.81,33.49486683]
[1759747775873,0.72,232.84,232.81,33.49486683]
[1759747776170,4.29472505,232.85,232.81,33.49486683]
[1759747776355,5.01472505,232.85,232.81,33.49486683]
[1759747777682,4.29472505,232.85,232.82,0.71]
[1759747778072,4.29472505,232.85,232.81,33.49486683]
[1759747778282,4.29472505,232.85,232.81,34.20486683]
[1759747778581,4.29443511,232.86,232.81,34.20486683]
[1759747778787,5.01443511,232.86,232.81,34.20486683]
[1759747778979,4.29425903,232.87,232.82,0.71]
[1759747779185,4.29425903,232.87,232.81,37.79014856]
[1759747779369,5.01425903,232.87,232.82,0.71]
[1759747780481,2.05863817,232.86,232.81,3.61486683]
[1759747780782,1.33863817,232.84,232.79,3.61486683]
[1759747780980,0.72,232.83,232.79,3.61486683]
[1759747781272,0.72,232.82,232.78,3.61486683]
[1759747781483,0.72,232.81,232.78,3.61486683]
[1759747781984,1.33863817,232.83,232.78,3.61486683]
[1759747782275,0.72,232.82,232.78,3.61486683]
[1759747782986,5.01519195,232.82,232.79,3.61486683]
[1759747783167,5.01519195,232.82,232.78,3.61486683]
[1759747784356,0.72,232.81,232.78,3.61486683]
[1759747784553,0.72,232.81,232.79,29.88]
[1759747787969,4.96497916,232.83,232.79,29.88]
[1759747788168,4.96521181,232.82,232.79,29.88]
[1759747788688,0.67,232.81,232.79,29.88]
[1759747789671,0.67,232.88,232.8,0.7]
[1759747789991,4.96405702,232.88,232.8,4.31026756]
[1759747790194,4.96405702,232.88,232.81,4.99518104]
[1759747790372,4.96405702,232.88,232.82,30.58]
[1759747794892,4.96405702,232.88,232.83,0.7]
[1759747795098,1.33863817,232.91,232.84,0.7]
[1759747795099,0.67,232.9,232.84,0.7]
[1759747795280,4.96385221,232.9,232.85,29.88]
[1759747795477,0.67,232.89,232.85,29.88]
[1759747796398,4.96387879,232.89,232.85,29.88]
[1759747796595,0.67,232.89,232.85,29.88]
[1759747796803,4.3933238,232.92,232.86,0.7]
[1759747797416,5.0633238,232.92,232.86,0.7]
[1759747798296,4.29350392,232.91,232.86,0.7]
[1759747798597,0.67,232.91,232.83,3.61026756]
[1759747798801,0.67,232.91,232.84,30.58]
[1759747798976,0.67,232.91,232.85,0.7]
[1759747800283,0.1,232.92,232.86,4.29442583]
[1759747800508,0.1,232.92,232.88,20.8]
[1759747800716,0.1,232.92,232.89,29.88]
[1759747800881,0.1,232.92,232.89,30.58]
[1759747801079,0.1,232.92,232.9,0.7]
[1759747801301,0.1,232.92,232.91,29.88]
[1759747802682,0.1,232.92,232.89,24.41026756]
[1759747802884,4.39337647,232.92,232.9,29.88]
[1759747803091,0.1,232.92,232.9,29.88]
[1759747803496,0.1,232.92,232.91,0.7]
[1759747804692,0.1,232.92,232.91,4.99350392]
[1759747805113,0.1,232.92,232.91,25.79350392]
[1759747805310,0.1,232.92,232.91,29.39722055]
[1759747806414,0.1,232.92,232.91,55.67350392]
[1759747811314,0.1,232.92,232.91,54.97350392]
[1759747812726,0.1,232.92,232.91,54.95350392]
[1759747813119,0.1,232.92,232.91,55.65350392]
[1759747814626,0.1,232.92,232.91,25.79350392]
[1759747814797,0.1,232.92,232.91,55.65350392]
[1759747815911,0.1,232.92,232.91,54.95350392]
[1759747816637,0.1,232.92,232.91,55.65350392]
[1759747816938,0.1,232.92,232.91,34.85350392]
[1759747817136,0.1,232.92,232.91,36.57123737]
[1759747819111,0.1,232.92,232.91,34.85350392]
[1759747819536,0.1,232.92,232.91,4.99350392]
[1759747819717,0.1,232.92,232.91,34.15350392]
[1759747819924,0.1,232.92,232.91,25.09350392]
[1759747820120,0.1,232.92,232.91,55.67350392]
[1759747820335,0.1,232.92,232.91,54.95350392]
[1759747822231,0.1,232.92,232.91,55.67350392]
[1759747823718,0.1,232.92,232.91,57.39108985]
[1759747824829,0.1,232.92,232.91,27.53108985]
[1759747825027,0.1,232.92,232.91,57.39108985]
[1759747825946,0.1,232.92,232.91,27.53108985]
[1759747826239,0.1,232.92,232.91,57.39108985]
[1759747833343,0.1,232.92,232.91,60.27480648]
[1759747835949,0.1,232.92,232.91,57.36108985]
[1759747837349,0.1,232.92,232.91,62.17659279]
[1759747839553,0.1,232.92,232.91,62.60594318]
[1759747839849,1e-08,232.92,232.91,62.60594318]
[1759747840226,1e-08,232.94,232.91,57.79044024]
[1759747840446,1e-08,232.94,232.92,5.49217337]
[1759747840728,1e-08,232.94,232.93,30.28931352]
[1759747840947,1e-08,232.95,232.93,32.69660449]
[1759747841149,1e-08,232.95,232.94,5.49151135]
[1759747841454,0.1,232.99,232.96,20.8]
[1759747841646,1e-08,232.99,232.97,30.28923981]
[1759747841830,0.67000001,232.99,232.96,4.8027719]
[1759747842037,0.67,232.98,232.97,29.84]
[1759747842269,1e-08,232.99,232.97,34.13239816]
[1759747842432,1e-08,232.99,232.98,3.60316722]
[1759747842840,1e-08,232.99,232.97,34.13239816]
[1759747843037,0.67000001,232.99,232.97,34.13239816]
[1759747843251,0.67,232.98,232.97,34.13239816]
[1759747843438,1e-08,232.99,232.97,35.84976286]
[1759747843637,0.67,232.98,232.97,35.84976286]
[1759747844051,1e-08,232.99,232.97,35.84976286]
[1759747844235,0.67000001,232.99,232.97,35.84976286]
[1759747845863,1e-08,232.99,232.97,35.84976286]
[1759747846361,1e-08,232.99,232.98,0.69]
[1759747846557,1e-08,232.99,232.98,5.4927719]
[1759747847343,1e-08,232.99,232.98,4.8027719]
[1759747847653,1e-08,232.99,232.98,35.3527719]
[1759747847867,1e-08,232.99,232.98,39.64498582]
[1759747848732,1e-08,232.99,232.98,38.95498582]
[1759747849163,1e-08,232.99,232.98,34.15221392]
[1759747850151,1e-08,232.99,232.98,4.29221392]
[1759747850351,1e-08,232.99,232.98,34.17221392]
[1759747850857,1e-08,232.99,232.98,38.97498582]
[1759747851562,1e-08,232.99,232.98,40.69212935]
[1759747853163,1e-08,232.99,232.98,40.69261212]
[1759747853359,0.66000001,232.99,232.98,6.00935745]
[1759747853558,0.66000001,232.99,232.98,35.86935745]
[1759747854466,0.66000001,232.99,232.98,6.00935745]
[1759747854840,0.66000001,232.99,232.98,50.66]
[1759747855047,0.66000001,232.99,232.98,52.37729097]
[1759747857165,0.66000001,232.99,232.98,1.71729097]
[1759747857342,0.66000001,232.99,232.98,29.86]
[1759747859263,2.74950154,232.99,232.95,3.60278277]
[1759747859468,2.08950153,232.97,232.96,29.88]
[1759747859649,0.66,232.97,232.96,29.88]
[1759747859851,2.74950153,232.97,232.96,29.88]
[1759747860149,2.74950153,232.97,232.92,24.40278277]
[1759747860359,0.66,232.96,232.95,20.8]
[1759747860555,0.66,232.96,232.95,29.88]
[1759747861165,1e-08,232.99,232.95,29.88]
[1759747861166,0.66,232.98,232.97,20.8]
[1759747861379,0.66,232.98,232.97,29.88]
[1759747861557,1e-08,232.99,232.97,29.88]
[1759747861762,0.66000001,232.99,232.97,29.88]
[1759747862053,1e-08,232.99,232.97,33.48278277]
[1759747862257,1e-08,232.99,232.98,29.9]
[1759747862457,1e-08,232.99,232.98,34.19221392]
[1759747862671,1e-08,232.99,232.98,37.79499669]
[1759747862977,1e-08,232.99,232.98,34.19221392]
[1759747863142,1e-08,232.99,232.98,35.90943116]
[1759747863547,0.66000001,232.99,232.98,34.23221392]
[1759747863768,0.66000001,232.99,232.98,29.94]
[1759747864155,0.66000001,232.99,232.96,4.80325467]
[1759747864351,0.66,232.98,232.96,4.80325467]
[1759747864659,1e-08,232.99,232.95,3.60432359]
[1759747864957,2.08950153,232.98,232.93,3.60432359]
[1759747865166,2.74950153,232.97,232.92,1.71773345]
[1759747865351,0.66,232.96,232.93,29.96]
[1759747865549,0.66,232.95,232.93,29.96]
[1759747865766,2.08950153,232.97,232.93,29.96]
[1759747865767,0.66,232.94,232.93,29.96]
[1759747868047,0.66,232.94,232.92,3.60432359]
[1759747868274,2.08950153,232.97,232.93,29.96]
[1759747868572,2.08950154,232.99,232.93,29.96]
[1759747868877,0.66,232.98,232.93,29.96]
[1759747869080,0.66,232.98,232.93,34.25301036]
[1759747869262,1e-08,232.99,232.96,20.8]
[1759747869263,0.66,232.97,232.96,20.8]
[1759747869465,0.66,232.97,232.96,50.78]
[1759747870480,1e-08,232.99,232.96,55.0725349]
[1759747870651,0.66,232.98,232.96,55.0725349]
[1759747870851,0.66,232.97,232.96,55.0725349]
[1759747871860,1e-08,232.99,232.96,55.0725349]
[1759747872083,1e-08,232.99,232.97,0.68]
[1759747872293,1e-08,232.99,232.98,33.58430189]
[1759747872478,1e-08,232.99,232.98,34.26430189]
[1759747872675,1e-08,232.99,232.98,30.66]
[1759747872880,1e-08,232.99,232.98,32.37721724]
[1759747873975,1e-08,232.99,232.98,36.66943116]
[1759747875486,1e-08,232.99,232.98,41.47268583]
[1759747876491,1e-08,232.99,232.98,36.66943116]
[1759747877297,1e-08,232.99,232.98,6.68943116]
[1759747877599,1e-08,232.99,232.98,36.00943116]
[1759747877808,1e-08,232.99,232.98,36.68943116]
[1759747879898,1e-08,232.99,232.98,36.66943116]
[1759747881303,1e-08,232.99,232.98,6.68943116]
[1759747881508,1e-08,232.99,232.98,36.66943116]
[1759747883286,1e-08,232.99,232.98,6.00943116]
[1759747883604,1e-08,232.99,232.98,36.69943116]
[1759747883780,1e-08,232.99,232.98,6.00943116]
[1759747883986,0.66000001,232.99,232.98,10.8134758]
[1759747884287,0.66000001,232.99,232.98,34.27221392]
[1759747885289,1e-08,232.99,232.98,34.27221392]
[1759747887418,1e-08,232.99,232.98,35.98943116]
[1759747888117,0.66000001,232.99,232.98,55.07221392]
[1759747888500,0.66000001,232.99,232.98,34.27221392]
[1759747889504,1e-08,232.99,232.98,34.27221392]
[1759747891108,1e-08,232.99,232.98,35.41143531]
[1759747891396,1e-08,232.99,232.98,42.64063318]
[1759747892294,0.1,233.01,233.0,20.8]
[1759747892516,0.1,233.01,233.0,51.22918454]
[1759747893018,0.1,233.01,233.0,55.52103003]
[1759747893512,0.1,233.01,233.0,57.94795244]
[1759747895518,0.1,233.05,233.0,68.67756617]
[1759747895826,0.1,233.05,233.04,20.8]
[1759747896122,0.92,233.09,233.04,54.3802174]
[1759747896296,0.92,233.09,233.04,56.09684508]
[1759747896492,0.2,233.09,233.04,56.09684508]
[1759747896693,0.72,233.06,233.04,56.09684508]
[1759747896896,0.2,233.09,233.04,26.11684508]
[1759747897109,0.72,233.06,233.04,5.31684508]
[1759747897422,0.2,233.09,233.05,29.98]
[1759747898026,0.72,233.06,233.05,29.98]
[1759747898203,0.72,233.06,233.05,20.8]
[1759747898410,0.72,233.06,233.05,50.78]
[1759747899718,0.72,233.06,233.05,55.07092469]
[1759747902435,0.72,233.06,233.05,50.78]
[1759747902603,0.72,233.06,233.04,20.8]
[1759747902805,0.2,233.09,233.05,29.96]
[1759747903021,0.2,233.09,233.06,29.96]
[1759747903843,0.82,233.07,233.06,29.96]
[1759747906706,0.1,233.07,233.06,29.96]
[1759747906922,0.82,233.07,233.06,29.96]
[1759747909413,0.82,233.07,233.06,29.94]
[1759747910741,5.11055648,233.07,233.03,20.8]
[1759747910949,4.39055648,233.07,233.06,20.8]
[1759747911246,4.39055648,233.07,233.06,50.76]
[1759747911445,5.07055648,233.07,233.06,50.76]
[1759747912232,5.07055648,233.07,233.06,29.96]
[1759747912438,5.07055648,233.07,233.05,29.96]
[1759747912636,0.68,233.06,233.05,29.96]
[1759747912940,4.97074058,233.06,233.05,29.96]
[1759747913629,4.97074058,233.06,233.05,29.94]
[1759747913840,4.97074058,233.06,233.0,3.6002174]
[1759747914161,0.68,233.05,233.01,50.74]
[1759747914322,4.29074058,233.06,233.01,50.74]
[1759747914526,0.68,233.04,233.03,20.8]
[1759747914722,4.97110882,233.04,233.03,50.74]
[1759747915457,4.97110882,233.04,233.0,20.8]
[1759747915642,4.29110882,233.04,233.03,20.8]
[1759747915845,4.29110882,233.04,233.03,50.74]
[1759747916229,4.97110882,233.04,233.03,29.94]
[1759747917579,4.97110882,233.04,232.99,3.6002174]
[1759747917850,0.68,233.03,233.02,20.8]
[1759747918027,0.68,233.03,233.02,50.74]
[1759747919639,0.68,233.03,232.95,4.8008691]
[1759747919640,4.97129296,233.03,232.98,24.4002174]
[1759747919857,0.68,233.02,233.01,20.8]
[1759747920047,0.68,233.02,233.01,50.74]
[1759747920665,0.1,233.07,233.01,50.74]
[1759747920666,0.68,233.05,233.01,50.74]
[1759747920844,0.68,233.04,233.01,50.74]
[1759747921240,0.78,233.07,233.01,55.0315372]
[1759747921439,0.78,233.07,233.01,58.6317546]
[1759747922152,0.1,233.07,233.02,0.69]
[1759747922353,0.1,233.07,233.03,30.65]
[1759747922661,0.1,233.07,233.03,29.96]
[1759747923038,0.78,233.07,233.03,29.96]
[1759747923438,0.1,233.07,233.03,29.96]
[1759747923633,0.1,233.07,233.03,34.25128221]
[1759747923851,0.1,233.07,233.04,4.2902174]
[1759747924058,0.1,233.07,233.05,29.96]
[1759747925053,0.1,233.07,233.05,34.94091406]
[1759747926046,0.1,233.07,233.05,34.25091406]
[1759747926252,0.1,233.07,233.05,34.94091406]
[1759747928864,0.1,233.07,233.06,0.69]
[1759747929560,0.1,233.07,233.05,34.25091406]
[1759747930856,0.1,233.07,233.05,29.96]
[1759747931165,2.01663426,233.06,233.04,3.6002174]
[1759747931345,2.01663426,233.05,232.96,3.6002174]
[1759747931540,4.3906809,233.07,232.93,4.8008691]
[1759747931541,21.48,233.04,232.93,17.62]
[1759747931763,1.33663426,232.97,232.93,21.2202174]
[1759747932071,2.01663426,232.96,232.94,30.16]
[1759747932238,0.68,232.95,232.91,3.6002174]
[1759747932443,2.01663426,232.95,232.92,30.16]
[1759747932645,0.68,232.94,232.89,3.6002174]
[1759747932946,2.01663426,232.93,232.9,30.16]
[1759747933147,0.68,232.92,232.9,30.16]
[1759747933856,0.68,232.91,232.88,3.6002174]
[1759747934160,4.29276668,232.95,232.85,3.6002174]
[1759747934161,2.01663426,232.9,232.85,3.6002174]
[1759747934370,0.68,232.89,232.86,30.16]
[1759747934569,0.68,232.88,232.87,30.16]
[1759747935350,0.68,232.91,232.87,30.16]
[1759747935554,0.68,232.9,232.87,30.16]
[1759747936869,0.68,232.9,232.83,4.98497761]
[1759747937078,0.68,232.9,232.84,30.16]
[1759747937667,25.09340975,232.92,232.85,0.69]
[1759747937972,25.79340975,232.92,232.85,0.69]
[1759747938960,6.33004401,232.92,232.85,0.69]
[1759747939986,20.8,232.98,232.87,20.8]
[1759747939987,0.7,232.94,232.87,20.8]
[1759747940198,0.7,232.94,232.88,30.16]
[1759747940888,0.7,232.96,232.91,20.8]
[1759747941062,4.29221392,232.98,232.92,30.16]
[1759747941063,0.7,232.98,232.92,30.16]
[1759747941266,0.7,232.97,232.92,30.16]
[1759747941566,1.33663426,232.99,232.92,30.16]
[1759747941567,0.7,232.96,232.92,30.16]
[1759747941768,1.33663426,232.99,232.92,30.16]
[1759747941968,0.7,232.96,232.92,30.16]
[1759747942164,0.7,232.95,232.92,30.16]
[1759747943681,4.29260603,232.96,232.89,4.95383719]
[1759747943991,0.7,232.97,232.9,0.66]
[1759747944189,0.7,232.97,232.91,30.14]
[1759747944190,4.99243203,232.97,232.91,30.14]
[1759747944388,4.99243203,232.97,232.9,0.66]
[1759747944584,4.99243203,232.97,232.91,30.14]
[1759747947765,2.79033832,232.96,232.91,30.14]
[1759747947989,0.7,232.95,232.91,30.14]
[1759747948291,2.09033832,232.96,232.91,30.14]
[1759747948470,0.7,232.95,232.91,30.14]
[1759747949193,6.38294598,232.96,232.91,30.14]
[1759747949570,6.38271675,232.98,232.92,0.66]
[1759747950197,7.08271675,232.98,232.92,0.66]
[1759747950891,0.7,232.98,232.94,20.8]
[1759747951102,4.99223713,232.98,232.95,30.12]
[1759747952394,0.7,232.97,232.95,30.12]
[1759747952699,4.29223713,232.98,232.95,30.12]
[1759747952880,0.7,232.97,232.95,30.12]
[1759747954714,4.29223713,232.98,232.95,30.12]
[1759747954883,5.00223713,232.98,232.95,30.12]
[1759747956402,4.29223713,232.98,232.95,30.12]
[1759747956588,5.00223713,232.98,232.95,30.12]
[1759747956788,5.00223713,232.98,232.94,20.8]
[1759747956990,5.00240555,232.97,232.95,30.1]
[1759747957190,4.29240555,232.97,232.95,30.1]
[1759747957688,5.00240555,232.97,232.95,30.1]
[1759747958797,4.29221392,232.98,232.95,30.1]
[1759747958980,5.00221392,232.98,232.95,30.1]
[1759747961380,5.00184549,233.0,232.95,30.1]
[1759747961797,0.71,232.99,232.95,30.1]
[1759747962111,4.2917239,233.01,232.96,0.67]
[1759747962290,5.0017239,233.01,232.96,0.67]
[1759747962619,4.2917239,233.01,232.96,0.67]
[1759747962782,0.71,233.0,232.96,0.67]
[1759747963102,4.2917239,233.01,232.96,0.67]
[1759747963402,5.00202534,233.0,232.95,50.9]
[1759747963601,2.09033832,233.02,232.96,0.67]
[1759747963805,2.09033832,233.01,232.96,0.67]
[1759747964010,0.71,233.0,232.95,50.9]
[1759747964193,0.71,233.0,232.95,51.57]
[1759747964886,6.38207565,233.01,232.95,50.9]
[1759747965092,4.29173733,233.01,232.96,0.67]
[1759747965300,5.00173733,233.01,232.96,0.67]
[1759747965503,6.38174874,233.03,232.97,0.67]
[1759747965805,4.29141042,233.03,232.98,30.06]
[1759747966000,5.00141042,233.03,232.98,30.73]
[1759747966209,4.29109312,233.05,232.99,0.67]
[1759747966384,6.38143144,233.05,232.99,0.67]
[1759747966589,7.09143144,233.05,232.99,0.67]
[1759747966997,5.00109312,233.05,232.99,0.67]
[1759747968197,5.00109312,233.05,232.98,34.35220794]
[1759747968398,0.7,233.04,232.98,34.35220794]
[1759747969791,4.99112536,233.04,232.98,30.06]
[1759747970304,4.99112536,233.04,232.98,30.76]
[1759747971094,4.99112536,233.04,232.98,35.05214563]
[1759747971297,2.19033832,233.07,233.01,20.8]
[1759747971494,4.39056004,233.07,233.02,30.74]
[1759747973211,0.1,233.07,233.03,0.7]
[1759747973517,0.1,233.07,233.04,0.7]
[1759747973811,0.1,233.07,233.02,34.33142319]
[1759747973812,0.1,233.07,233.02,35.03142319]
[1759747974017,0.1,233.07,233.03,0.7]
[1759747974220,0.1,233.07,233.05,20.8]
[1759747974519,0.1,233.07,233.06,30.06]
[1759747982498,0.1,233.07,233.06,30.76]
[1759747983821,0.1,233.07,233.06,30.06]
[1759747985312,0.8,233.07,233.06,30.06]
[1759747985519,0.1,233.07,233.06,30.06]
[1759747986933,7.1808948,233.07,233.0,20.8]
[1759747987115,2.09033832,233.03,233.0,50.82]
[1759747987427,0.7,233.04,233.0,50.82]
[1759747988422,4.99121501,233.04,233.0,50.82]
[1759747988933,4.29121501,233.04,233.0,51.52]
[1759747989231,4.29121501,233.04,233.0,50.82]
[1759747990327,7.08132297,233.05,233.0,51.52]
[1759747991237,2.09033832,233.03,232.96,25.09094724]
[1759747991427,2.09033832,233.01,233.0,20.8]
[1759747991628,2.79033832,233.01,233.0,50.84]
[1759747991937,2.79033832,233.01,233.0,30.04]
[1759747992334,0.7,233.01,233.0,30.04]
[1759747992535,4.9916613,233.01,233.0,30.04]
[1759747993327,0.7,233.01,233.0,30.04]
[1759747993522,7.08144714,233.04,233.0,30.04]
[1759747993921,2.79033832,233.03,233.0,30.04]
[1759747994353,7.08177634,233.03,233.0,30.04]
[1759747994644,6.38177634,233.03,233.0,30.04]
[1759747994953,2.79033832,233.02,233.0,30.04]
[1759747995139,0.7,233.01,233.0,30.04]
[1759747995646,2.09033832,233.02,233.0,30.04]
[1759747995848,2.79033832,233.01,233.0,30.04]
[1759747996545,7.08199962,233.01,233.0,30.04]
[1759747996733,7.08199962,233.01,232.95,24.39094724]
[1759747996936,2.79033832,233.0,232.99,20.8]
[1759747997129,2.79033832,233.0,232.96,30.02]
[1759747997130,2.79033832,233.0,232.98,30.02]
[1759747997332,15.02081455,233.01,232.94,3.59094724]
[1759747997333,2.79033832,232.99,232.94,3.59094724]
[1759747997650,2.09033832,232.96,232.95,30.02]
[1759747997829,2.80033832,232.96,232.95,30.02]
[1759747998556,2.09033832,233.02,232.95,30.69]
[1759747998857,2.09033832,233.01,232.95,30.69]
[1759747999354,2.80033832,233.0,232.95,30.69]
[1759747999535,2.80033832,233.0,232.95,34.28094724]
[1759748000542,4.2920297,232.99,232.95,34.28094724]
[1759748001465,0.71,233.0,232.95,34.28094724]
[1759748001664,2.09033832,233.01,232.96,0.67]
[1759748001847,2.80033832,233.01,232.96,0.67]
[1759748002169,2.80033832,233.01,232.95,33.61094724]
[1759748002350,2.80033832,233.01,232.96,0.67]
[1759748002867,2.09033832,233.01,232.95,33.61094724]
[1759748003050,2.80033832,233.01,232.95,34.28094724]
[1759748003233,4.29185438,233.0,232.95,34.28094724]
[1759748004443,4.29185438,233.0,232.96,0.67]
[1759748004760,4.29185438,233.0,232.96,4.26094724]
[1759748004961,0.71,232.99,232.95,33.61094724]
[1759748005285,6.3821927,233.0,232.95,34.28094724]
[1759748005459,7.0921927,233.0,232.95,34.28094724]
[1759748006262,2.80033832,232.99,232.95,33.61094724]
[1759748006461,2.80033832,232.98,232.95,3.59094724]
[1759748006667,0.71,232.98,232.96,30.0]
[1759748006978,15.02146811,233.0,232.96,30.0]
[1759748007183,1.33771247,232.99,232.96,30.0]
[1759748007352,0.71,232.98,232.96,30.0]
[1759748007751,5.00239816,232.97,232.96,30.0]
[1759748007962,5.00239816,232.97,232.93,3.59094724]
[1759748007963,6.34011063,232.97,232.93,3.59094724]
[1759748008162,2.04771247,232.96,232.93,30.0]
[1759748008554,0.71,232.96,232.93,30.0]
[1759748008968,16.36110603,232.97,232.93,30.0]
[1759748009167,0.71,232.96,232.93,30.0]
[1759748009362,0.71,232.95,232.93,30.0]
[1759748010364,4.29276668,232.95,232.93,30.0]
[1759748011672,0.71,233.0,232.93,30.0]
[1759748011863,6.33934757,233.02,232.96,20.8]
[1759748012069,5.0016351,233.02,232.97,30.0]
[1759748012268,5.0016351,233.02,232.97,30.67]
[1759748012785,0.71,233.01,232.97,30.0]
[1759748012969,4.2916351,233.02,232.97,30.67]
[1759748013163,6.33934757,233.02,232.97,30.67]
[1759748013560,5.62934757,233.02,232.97,30.67]
[1759748014083,5.62934757,233.02,232.98,0.67]
[1759748014084,4.2916351,233.02,232.98,0.67]
[1759748014787,5.0016351,233.02,232.97,30.0]
[1759748014986,5.0016351,233.02,232.97,30.67]
[1759748015207,1.33771247,233.04,232.98,0.67]
[1759748015379,0.71,233.05,233.0,20.8]
[1759748015576,2.04771247,233.05,233.01,30.0]
[1759748016172,4.95114046,233.04,233.01,30.0]
[1759748016578,1.33771247,233.02,233.01,30.0]
[1759748016882,1.33771247,233.03,233.01,30.0]
[1759748017993,1.99771247,233.03,233.01,30.0]
[1759748018688,4.29147712,233.02,233.01,30.0]
[1759748020595,15.01888087,233.04,233.01,30.0]
[1759748020781,1.33771247,233.03,233.01,30.0]
[1759748023082,4.29147712,233.02,233.01,30.0]
[1759748025279,4.29129296,233.03,233.01,30.68]
[1759748025500,5.6287475,233.05,233.01,30.0]
[1759748025704,6.38844141,233.07,233.02,0.68]
[1759748025885,5.05072894,233.07,233.04,20.8]
[1759748026085,5.05072894,233.07,233.04,50.76]
[1759748026595,4.39072894,233.07,233.04,50.76]
[1759748027799,0.1,233.07,233.04,51.46]
[1759748028783,0.1,233.07,233.05,0.7]
[1759748029188,0.1,233.07,233.06,0.7]
[1759748031610,0.1,233.07,233.06,4.99074058]
[1759748031815,0.1,233.07,233.06,3.49074058]
[1759748032184,0.1,233.07,233.05,4.29092469]
[1759748034816,0.1,233.07,233.06,20.8]
[1759748034999,0.1,233.07,233.06,29.96]
[1759748035611,0.1,233.07,233.06,34.25074058]
[1759748036205,0.1,233.07,233.06,29.96]
[1759748036713,0.1,233.07,233.06,33.30301234]
[1759748038895,0.78,233.07,233.06,20.8]
[1759748039102,0.78,233.07,233.06,50.74]
[1759748039496,0.1,233.07,233.06,50.74]
[1759748041212,0.1,233.07,233.06,29.94]
[1759748042818,0.1,233.07,233.06,34.23074058]
[1759748043821,0.1,233.07,233.06,29.94]
[1759748044327,0.1,233.07,233.06,50.74]